fUST/lending_fUST_20240309
["ID","MTS","AMOUNT","RATE_DAILY","PERIOD"]
[317904248,1709989833576,-7555.5865266,0.00022899,2]
[317904250,1709989833585,-200.9747837,0.000229,2]
[317904252,1709989833594,-500.0,0.00022997,2]
[317904254,1709989833603,-571.83,0.00022997,2]
[317904256,1709989833612,-1014.01,0.00022997,2]
[317904258,1709989833621,-1998.65,0.00022997,2]
[317904260,1709989833630,-1473.66141674,0.00022998,2]
[317904262,1709989833639,-626.70974385,0.00022998,2]
[317904264,1709989833649,-155.13341474,0.00022998,2]
[317904266,1709989833658,-703.96157741,0.00022998,2]
[317904268,1709989833666,-1605.92382438,0.00022998,2]
[317904269,1709989833680,-401.2321432,0.00022998,2]
[317904272,1709989833689,-290.38682753,0.00022998,2]
[317904273,1709989833699,-538.93657172,0.00022998,2]
[317904275,1709989833708,-3932.10030292,0.00022998,2]
[317904277,1709989833718,-7681.61083233,0.00022998,2]
[317904279,1709989833727,-310.05270896,0.00022998,2]
[317904282,1709989833737,-196.59952434,0.00022998,2]
[317904283,1709989833746,-207.1734269,0.00022998,2]
[317904286,1709989833755,-155.60881299,0.00022998,2]
[317904287,1709989833765,-557.93805883,0.00022998,2]
[317904290,1709989833775,-623.67540382,0.00022998,2]
[317904292,1709989833784,-429.16778282,0.00022998,2]
[317904294,1709989833794,-1949.94957561,0.00022998,2]
[317904296,1709989833803,-155.25014868,0.00022998,2]
[317904297,1709989833812,-155.12409928,0.00022998,2]
[317904300,1709989833821,-155.12409928,0.00022998,2]
[317904301,1709989833831,-170.16163462,0.00022998,2]
[317904303,1709989833840,-209.24833889,0.00022998,2]
[317904306,1709989833849,-500.0,0.00022998,2]
[317904307,1709989833858,-228.10225122,0.00022998,2]
[317904309,1709989833867,-1014.01,0.00022998,2]
[317904311,1709989833876,-1014.01,0.00022998,2]
[317904313,1709989833886,-1998.65,0.00022998,2]
[317904315,1709989833895,-1998.65,0.00022998,2]
[317904317,1709989833904,-500.0,0.00022998,2]
[317904319,1709989833913,-500.0,0.00022999,2]
[317904321,1709989833922,-524.62,0.00022999,2]
[317904323,1709989833932,-151.0,0.00022999,2]
[317904325,1709989833941,-151.0,0.00022999,2]
[317904327,1709989833950,-1014.01,0.00022999,2]
[317904329,1709989833959,-1014.01,0.00022999,2]
[317904331,1709989833969,-1014.01,0.00022999,2]
[317904332,1709989833978,-1014.01,0.00022999,2]
[317904334,1709989833987,-1014.01,0.00022999,2]
[317904336,1709989833997,-1014.01,0.00022999,2]
[317904338,1709989834007,-1014.01,0.00022999,2]
[317904340,1709989834016,-1014.01,0.00022999,2]
[317904342,1709989834025,-1014.01,0.00022999,2]
[317904344,1709989834035,-1998.65,0.00022999,2]
[317904346,1709989834044,-1014.01,0.00022999,2]
[317904348,1709989834053,-1014.01,0.00022999,2]
[317904350,1709989834063,-1998.65,0.00022999,2]
[317904352,1709989834071,-1014.01,0.00022999,2]
[317904354,1709989834082,-1998.65,0.00022999,2]
[317904356,1709989834092,-659.77597917,0.00022999,2]
[317904359,1709989834104,-680.57379999,0.00022999,2]
[317904595,1709989838081,-658.30022084,0.00022999,2]
[317904597,1709989838091,-1014.01,0.00022999,2]
[317904599,1709989838100,-1998.65,0.00022999,2]
[317904601,1709989838109,-1014.01,0.00022999,2]
[317904603,1709989838119,-1014.01,0.00022999,2]
[317904604,1709989838130,-1856.60630576,0.00022999,2]
[317904607,1709989838142,-142.04369424,0.00022999,2]
[317904610,1709989838153,-1137.31442286,0.00022999,2]
[317904895,1709989843243,-590.07304818,0.00022999,2]
[317904898,1709989843255,-271.26252896,0.00022999,2]
[317904900,1709989843265,-1014.01,0.00022999,2]
[317904902,1709989843274,-1998.65,0.00022999,2]
[317904905,1709989843284,-1014.01,0.00022999,2]
[317904907,1709989843293,-1998.65,0.00022999,2]
[317904909,1709989843302,-1014.01,0.00022999,2]
[317904911,1709989843311,-1014.01,0.00022999,2]
[317904913,1709989843321,-1998.65,0.00022999,2]
[317904915,1709989843330,-1014.01,0.00022999,2]
[317904917,1709989843341,-1998.65,0.00022999,2]
[317904919,1709989843350,-1014.06607712,0.00022999,2]
[317904921,1709989843359,-1998.65,0.00022999,2]
[317904923,1709989843368,-1998.65,0.00022999,2]
[317904925,1709989843377,-1998.65,0.00022999,2]
[317904927,1709989843386,-1998.65,0.00022999,2]
[317904929,1709989843395,-1998.65,0.00022999,2]
[317904931,1709989843404,-1998.65,0.00022999,2]
[317904933,1709989843413,-1998.65,0.00022999,2]
[317904935,1709989843422,-1998.65,0.00022999,2]
[317904937,1709989843431,-1998.81226242,0.00022999,2]
[317904938,1709989843440,-58148.72974278,0.00023,5]
[317904941,1709989843452,-4279.10439603,0.00023,5]
[317904943,1709989843463,-1027904.1085782,0.00023,5]
[317905241,1709989846199,-186.68406057,0.00022998,2]
[317905243,1709989846209,-951.51321282,0.00023,5]
[317905250,1709989846337,-0.46195714,0.00023,5]
[317905261,1709989862643,155.49364336,0.00019929,2]
[317905263,1709989864116,194.30418684,0.00019929,2]
[317905264,1709989871212,217.70076755,0.00019929,2]
[317905265,1709989873166,236.21110947,0.00019929,2]
[317905266,1709989874057,686.5262704,0.00019929,2]
[317905267,1709989874670,156.37577196,0.00017249,2]
[317905268,1709989909039,60718.38556775,0.00019929,2]
[317905272,1709990159448,303.0,0.00019929,2]
[317905273,1709990392364,192.0124796,0.00019665,2]
[317905274,1709990460765,-1771.76746028,0.00020003,2]
[317905275,1709990460790,-3082.23253972,0.00020004,2]
[317905276,1709990499314,218.46610751,0.0002,2]
[317905277,1709990506873,155.1178896,0.0002,2]
[317905278,1709990531543,-186.68406057,0.00020001,2]
[317905279,1709990531565,-1951.29003649,0.00020001,2]
[317905280,1709990531586,-9813.02590294,0.00020002,2]
[317905281,1709990533889,155.1178896,0.0002,2]
[317905285,1709990786839,155.1178896,0.0002,2]
[317905286,1709990797918,155.1178896,0.0002,2]
[317905287,1709990801319,155.1178896,0.0002,2]
[317905288,1709990805479,1951.29003649,0.0002,2]
[317905289,1709990806241,245.85336353,0.000199,2]
[317905290,1709990807230,186.68406057,0.0002,2]
[317905291,1709990819838,218.46610751,0.0002,2]
[317905292,1709990831625,250.67977688,0.000189,2]
[317905294,1709990869873,191.51392529,0.0002,2]
[317905295,1709990894614,195.04238031,0.00019245,2]
[317905296,1709990894640,716.59121499,0.00019245,2]
[317905297,1709990899691,155.1178896,0.0002,2]
[317905331,1709991032355,-186.68406057,0.00020179,2]
[317905332,1709991032365,-1771.76746028,0.0002018,2]
[317905333,1709991032375,-218.46610751,0.0002018,2]
[317905334,1709991032384,-155.1178896,0.00020181,2]
[317905335,1709991032393,-155.1178896,0.00020181,2]
[317905336,1709991032403,-13733.06492712,0.00020183,2]
[317905337,1709991032412,-11841.68644266,0.00020184,2]
[317905338,1709991033841,-271.3842488,0.00020184,2]
[317905400,1709991040370,-1262.11867165,0.00020184,2]
[317906050,1709991065148,2596.93968043,0.00019961,2]
[317906051,1709991067675,93374.07042232,0.0002,2]
[317906052,1709991133014,167.11985125,0.000189,2]
[317906055,1709991293176,24900.0,0.00019225,2]
[317906057,1709991431670,166.819791,0.00019519,2]
[317906059,1709991663312,254.205421,0.00019164,2]
[317906060,1709991732882,237.4952513,0.00019162,2]
[317906061,1709991816448,11564.8106369,0.00019161,2]
[317906062,1709991843506,1296.18355182,0.0002,2]
[317906063,1709991886056,166.819791,0.00019178,2]
[317906368,1709992238594,-624.23888742,0.00020111,2]
[317906370,1709992238603,-269.15280228,0.00020112,2]
[317906372,1709992238613,-155.14273131,0.00020113,2]
[317906373,1709992238622,-155.14739002,0.00020114,2]
[317906375,1709992238631,-186.68406057,0.00020114,2]
[317906377,1709992238641,-13733.06492712,0.00020114,2]
[317906379,1709992238650,-218.46610751,0.00020115,2]
[317906381,1709992238660,-1881.65756627,0.00020115,2]
[317906382,1709992238670,-1333.81760978,0.00020128,2]
[317906384,1709992238679,-1710.19378772,0.00020183,2]
[317906867,1709992244256,-11215.6619454,0.00020183,2]
[317906868,1709992244265,-170.3347904,0.00020458,2]
[317906870,1709992244274,-254.205421,0.00020669,2]
[317906872,1709992244284,-1703.79784313,0.0002073,2]
[317906875,1709992244295,-1530.36217837,0.0002073,2]
[317906877,1709992244305,-500.0,0.00021,2]
[317906879,1709992244314,-336.64420361,0.00021848,2]
[317906881,1709992244323,-500.0,0.00022,2]
[317906883,1709992244333,-3184.63469443,0.00022,2]
[317906885,1709992244343,-328.0,0.00022,2]
[317906886,1709992244354,-200.9747837,0.00022,2]
[317906888,1709992244363,-200.9747837,0.00022,2]
[317906890,1709992244373,-328.0,0.00022192,2]
[317906892,1709992244382,-1889.09,0.00022739,2]
[317906894,1709992244392,-310.07751938,0.00022739,2]
[317906896,1709992244402,-500.0,0.00022739,2]
[317906898,1709992244414,-500.0,0.00022739,2]
[317906900,1709992244423,-1771.40506744,0.00022975,2]
[317906902,1709992244432,-500.0,0.00022997,2]
[317906904,1709992244442,-419.83676936,0.00022997,2]
[317906916,1709992249234,-80.16323064,0.00022997,2]
[317906917,1709992249244,-500.0,0.00022997,2]
[317906918,1709992249254,-500.0,0.00022997,2]
[317906919,1709992249264,-500.0,0.00022997,2]
[317906920,1709992249273,-703.96157741,0.00022998,2]
[317906921,1709992249283,-1605.92382438,0.00022998,2]
[317906922,1709992249293,-200.98110513,0.00022998,2]
[317906923,1709992249303,-258.37957666,0.00022998,2]
[317906924,1709992249313,-155.38176174,0.00022998,2]
[317906925,1709992249324,-239.44321981,0.00022998,2]
[317906926,1709992249334,-540.02181989,0.00022998,2]
[317906927,1709992249343,-155.12565178,0.00022998,2]
[317906928,1709992249353,-558.30663003,0.00022998,2]
[317906929,1709992249362,-518.3834717,0.00022998,2]
[317906930,1709992249372,-194.51945916,0.00022998,2]
[317906931,1709992249382,-274.40928357,0.00022998,2]
[317906932,1709992249392,-229.19554927,0.00022998,2]
[317906933,1709992249403,-155.60137183,0.00022998,2]
[317906934,1709992249412,-179.54861964,0.00022998,2]
[317906935,1709992249423,-155.52632166,0.00022998,2]
[317906936,1709992249434,-171.79742395,0.00022998,2]
[317906937,1709992249444,-171.04775531,0.00022998,2]
[317906938,1709992249455,-185.170703,0.00022998,2]
[317906939,1709992249466,-2596.93968143,0.00022998,2]
[317906940,1709992249476,-1369.70635536,0.00022998,2]
[317906941,1709992249486,-5317.20392906,0.00022998,2]
[317906942,1709992249497,-311.20050293,0.00022998,2]
[317906943,1709992249508,-500.0,0.00022998,2]
[317906944,1709992249518,-500.0,0.00022998,2]
[317906945,1709992249527,-499.76178538,0.00022998,2]
[317906946,1709992249537,-451.58312542,0.00022998,2]
[317906947,1709992249547,-300.55648068,0.00022998,2]
[317906948,1709992249556,-500.0,0.00022998,2]
[317906949,1709992249566,-687.90096449,0.00022998,2]
[317906950,1709992249576,-500.0,0.00022998,2]
[317906951,1709992249586,-500.0,0.00022998,2]
[317906952,1709992249596,-155.83489796,0.00022999,2]
[317906953,1709992249606,-186.31273732,0.00022999,2]
[317906954,1709992249616,-745.25548333,0.00022999,2]
[317906955,1709992249626,-1889.09,0.00022999,2]
[317906956,1709992249635,-1889.09,0.00022999,2]
[317906957,1709992249644,-1889.09,0.00022999,2]
[317906958,1709992249654,-1889.09,0.00022999,2]
[317906959,1709992249664,-1889.09,0.00022999,2]
[317906960,1709992249674,-1889.09,0.00022999,2]
[317906961,1709992249684,-1889.09,0.00022999,2]
[317906962,1709992249694,-1889.09,0.00022999,2]
[317906963,1709992249704,-1889.09,0.00022999,2]
[317906964,1709992249714,-1889.09,0.00022999,2]
[317906965,1709992249724,-1889.09,0.00022999,2]
[317906966,1709992249733,-1889.09,0.00022999,2]
[317906967,1709992249743,-1889.09,0.00022999,2]
[317906968,1709992249855,-1889.09,0.00022999,2]
[317906969,1709992249866,-1705.96900059,0.00022999,2]
[317906970,1709992265240,2596.93967943,0.000188,2]
[317906974,1709992930890,13796.3473318,0.00019752,2]
[317906976,1709992995942,166.666666,0.00019178,2]
[317906978,1709993242887,383.65101,0.000189,2]
[317907022,1709993432704,-155.14583709,0.00020135,2]
[317907025,1709993432714,-218.46610751,0.00020136,2]
[317907026,1709993432724,-186.68406057,0.00020137,2]
[317907028,1709993432734,-1881.65756627,0.00020138,2]
[317907030,1709993432743,-13733.06492712,0.00020772,2]
[317907031,1709993432752,-3082.2325398,0.00020773,2]
[317907032,1709993432762,-24900.0,0.000216,2]
[317907033,1709993432771,-178.31464164,0.00021897,2]
[317907034,1709993432780,-342.09551062,0.00021997,2]
[317907035,1709993432793,-246.0,0.00022,2]
[317907036,1709993432802,-246.0,0.00022192,2]
[317907037,1709993432811,-3095.99309237,0.00022539,2]
[317907038,1709993432820,-456.404056,0.00022639,2]
[317907039,1709993432829,-662.36554,0.00022639,2]
[317907040,1709993432838,-500.0,0.00022739,2]
[317907041,1709993432847,-501.2419323,0.00022739,2]
[317907042,1709993432856,-500.0,0.00022739,2]
[317907043,1709993432864,-500.0,0.00022739,2]
[317907044,1709993432874,-500.0,0.00022739,2]
[317907045,1709993432885,-590.9,0.00022739,2]
[317907046,1709993432894,-500.0,0.00022739,2]
[317907047,1709993432902,-637.33,0.00022739,2]
[317907048,1709993432911,-500.0,0.00022739,2]
[317907049,1709993432920,-500.0,0.00022739,2]
[317907050,1709993432928,-500.0,0.00022739,2]
[317907051,1709993432937,-500.0,0.00022739,2]
[317907052,1709993432946,-500.0,0.00022739,2]
[317907053,1709993432954,-789.51,0.00022739,2]
[317907054,1709993432963,-456.404056,0.00022922,2]
[317907055,1709993432972,-662.36554,0.00022922,2]
[317907056,1709993432981,-1771.76746028,0.00022975,2]
[317907057,1709993432990,-500.0,0.00022997,2]
[317907058,1709993432999,-500.0,0.00022997,2]
[317907059,1709993433008,-590.9,0.00022997,2]
[317907060,1709993433017,-500.0,0.00022997,2]
[317907061,1709993433026,-637.33,0.00022997,2]
[317907062,1709993433035,-500.0,0.00022997,2]
[317907063,1709993433044,-600.69722437,0.00022997,2]
[317907064,1709993433053,-500.0,0.00022997,2]
[317907065,1709993433063,-500.0,0.00022997,2]
[317907066,1709993433072,-500.0,0.00022997,2]
[317907067,1709993433081,-789.51,0.00022997,2]
[317907068,1709993433090,-309.90971672,0.00022998,2]
[317907069,1709993433099,-744.55321892,0.00022998,2]
[317907070,1709993433107,-269.08197978,0.00022998,2]
[317907071,1709993433117,-703.96157741,0.00022998,2]
[317907072,1709993433126,-2688.35453672,0.00022998,2]
[317907073,1709993433135,-155.13030946,0.00022998,2]
[317907074,1709993433144,-673.28995976,0.00022998,2]
[317907075,1709993433153,-316.55543465,0.00022998,2]
[317907076,1709993433162,-500.0,0.00022998,2]
[317907077,1709993433171,-500.0,0.00022998,2]
[317907078,1709993433181,-179.41638659,0.00022998,2]
[317907079,1709993433190,-500.0,0.00022998,2]
[317907080,1709993433199,-500.0,0.00022998,2]
[317907081,1709993433208,-183.0815677,0.00022998,2]
[317907082,1709993433217,-500.0,0.00022998,2]
[317907083,1709993433226,-500.0,0.00022998,2]
[317907084,1709993433235,-590.9,0.00022998,2]
[317907085,1709993433243,-500.0,0.00022998,2]
[317907086,1709993433253,-5413.1338673,0.00022998,2]
[317907087,1709993433262,-354.39557724,0.00022998,2]
[317907088,1709993433271,-637.33,0.00022998,2]
[317907089,1709993433280,-199.77352372,0.00022998,2]
[317907090,1709993433289,-1951.29003649,0.00022998,2]
[317907091,1709993433298,-500.0,0.00022998,2]
[317907092,1709993433308,-502.64349365,0.00022998,2]
[317907093,1709993433317,-500.0,0.00022998,2]
[317907094,1709993433326,-500.0,0.00022998,2]
[317907095,1709993433335,-8490.62666852,0.00022998,2]
[317907096,1709993433348,-7388.53270347,0.00022998,2]
[317907097,1709993433359,-789.51,0.00022998,2]
[317907098,1709993433368,-500.0,0.00022999,2]
[317907099,1709993433377,-500.0,0.00022999,2]
[317907100,1709993433386,-500.0,0.00022999,2]
[317907101,1709993433395,-307.1904807,0.00022999,2]
[317907102,1709993433404,-500.0,0.00022999,2]
[317907103,1709993433413,-496.78111499,0.00022999,2]
[317907104,1709993433422,-500.0,0.00022999,2]
[317907105,1709993433431,-500.0,0.00022999,2]
[317907106,1709993433440,-500.0,0.00022999,2]
[317907107,1709993433449,-500.0,0.00022999,2]
[317907108,1709993433458,-500.0,0.00022999,2]
[317907109,1709993433467,-500.0,0.00022999,2]
[317907110,1709993433475,-500.0,0.00022999,2]
[317907111,1709993433484,-500.0,0.00022999,2]
[317907112,1709993433493,-500.0,0.00022999,2]
[317907113,1709993433502,-500.0,0.00022999,2]
[317907114,1709993433511,-325.97078708,0.00022999,2]
[317907115,1709993433521,-500.0,0.00022999,2]
[317907116,1709993433530,-549.23160744,0.00022999,2]
[317907117,1709993433539,-590.9,0.00022999,2]
[317907118,1709993433549,-590.9,0.00022999,2]
[317907119,1709993433558,-590.9,0.00022999,2]
[317907120,1709993433567,-590.9,0.00022999,2]
[317907121,1709993433577,-590.9,0.00022999,2]
[317907122,1709993433586,-590.9,0.00022999,2]
[317907123,1709993433595,-590.9,0.00022999,2]
[317907124,1709993433604,-590.9,0.00022999,2]
[317907125,1709993433614,-590.9,0.00022999,2]
[317907126,1709993433623,-590.9,0.00022999,2]
[317907127,1709993433632,-590.9,0.00022999,2]
[317907128,1709993433642,-590.9,0.00022999,2]
[317907129,1709993433651,-590.9,0.00022999,2]
[317907130,1709993433661,-590.9,0.00022999,2]
[317907131,1709993433670,-590.9,0.00022999,2]
[317907132,1709993433679,-590.9,0.00022999,2]
[317907133,1709993433689,-590.9,0.00022999,2]
[317907134,1709993433698,-590.9,0.00022999,2]
[317907135,1709993433708,-590.9,0.00022999,2]
[317907136,1709993433717,-590.9,0.00022999,2]
[317907137,1709993433727,-590.95358928,0.00022999,2]
[317907138,1709993433736,-500.0,0.00022999,2]
[317907139,1709993433745,-500.0,0.00022999,2]
[317907140,1709993433754,-500.0,0.00022999,2]
[317907141,1709993433764,-500.0,0.00022999,2]
[317907142,1709993433773,-500.0,0.00022999,2]
[317907143,1709993433782,-500.0,0.00022999,2]
[317907144,1709993433792,-500.0,0.00022999,2]
[317907145,1709993433801,-500.0,0.00022999,2]
[317907146,1709993433812,-500.0,0.00022999,2]
[317907147,1709993433821,-500.0,0.00022999,2]
[317907148,1709993433830,-500.0,0.00022999,2]
[317907149,1709993433840,-274.72491084,0.00022999,2]
[317907150,1709993433850,-637.33,0.00022999,2]
[317907151,1709993433860,-637.33,0.00022999,2]
[317907152,1709993433868,-637.33,0.00022999,2]
[317907153,1709993433879,-637.33,0.00022999,2]
[317907154,1709993433888,-103.73087629,0.00022999,2]
[317907155,1709993433900,-533.59912371,0.00022999,2]
[317907156,1709993433909,-483.36793437,0.00022999,2]
[317907175,1709993438657,-153.96206563,0.00022999,2]
[317907178,1709993438667,-637.33,0.00022999,2]
[317907180,1709993438676,-637.33,0.00022999,2]
[317907182,1709993438686,-637.33,0.00022999,2]
[317907183,1709993438695,-637.33,0.00022999,2]
[317907185,1709993438705,-637.33,0.00022999,2]
[317907187,1709993438714,-637.33,0.00022999,2]
[317907189,1709993438723,-637.33,0.00022999,2]
[317907191,1709993438732,-637.33,0.00022999,2]
[317907193,1709993438741,-637.33,0.00022999,2]
[317907195,1709993438750,-637.33,0.00022999,2]
[317907197,1709993438760,-637.33,0.00022999,2]
[317907199,1709993438771,-637.33,0.00022999,2]
[317907201,1709993438780,-637.33,0.00022999,2]
[317907203,1709993438790,-637.33,0.00022999,2]
[317907205,1709993438800,-637.36079357,0.00022999,2]
[317907206,1709993438812,-500.0,0.00022999,2]
[317907207,1709993438821,-500.0,0.00022999,2]
[317907208,1709993438831,-500.0,0.00022999,2]
[317907209,1709993438842,-500.0,0.00022999,2]
[317907210,1709993438851,-500.0,0.00022999,2]
[317907211,1709993438861,-160.10586083,0.00022999,2]
[317907212,1709993438870,-500.0,0.00022999,2]
[317907213,1709993438880,-500.0,0.00022999,2]
[317907214,1709993438890,-500.0,0.00022999,2]
[317907215,1709993438899,-256.06844297,0.00022999,2]
[317907216,1709993438912,-243.93155703,0.00022999,2]
[317907217,1709993438921,-500.0,0.00022999,2]
[317907218,1709993438930,-500.0,0.00022999,2]
[317907219,1709993438939,-500.0,0.00022999,2]
[317907220,1709993438949,-500.0,0.00022999,2]
[317907221,1709993438958,-500.0,0.00022999,2]
[317907222,1709993438967,-500.0,0.00022999,2]
[317907223,1709993438976,-500.0,0.00022999,2]
[317907224,1709993438987,-191.48594262,0.00022999,2]
[317907225,1709993438996,-500.0,0.00022999,2]
[317907226,1709993439006,-170.66031876,0.00022999,2]
[317907227,1709993439016,-97.89321744,0.00022999,2]
[317907244,1709993440700,-691.61678256,0.00022999,2]
[317907245,1709993440709,-789.51,0.00022999,2]
[317907247,1709993440719,-616.26407839,0.00022999,2]
[317907250,1709993440733,-173.24592161,0.00022999,2]
[317907252,1709993440744,-789.51,0.00022999,2]
[317907253,1709993440755,-789.51,0.00022999,2]
[317907254,1709993440765,-789.51,0.00022999,2]
[317907255,1709993440775,-789.51,0.00022999,2]
[317907256,1709993440784,-590.72321744,0.00022999,2]
[317907257,1709993440800,-198.78678256,0.00022999,2]
[317907258,1709993440811,-789.51,0.00022999,2]
[317907259,1709993440821,-789.51,0.00022999,2]
[317907260,1709993440830,-789.51,0.00022999,2]
[317907261,1709993440840,-789.51,0.00022999,2]
[317907262,1709993440851,-789.51,0.00022999,2]
[317907263,1709993440862,-789.51,0.00022999,2]
[317907264,1709993440872,-789.51,0.00022999,2]
[317907265,1709993440883,-789.51,0.00022999,2]
[317907266,1709993440894,-789.51,0.00022999,2]
[317907267,1709993440903,-789.51,0.00022999,2]
[317907268,1709993440912,-789.51,0.00022999,2]
[317907269,1709993440922,-789.51,0.00022999,2]
[317907270,1709993440932,-789.64111259,0.00022999,2]
[317907271,1709993440941,-500.0,0.00022999,2]
[317907272,1709993440951,-13168.60977225,0.00023,5]
[317907303,1709993443737,-6550.0,0.00023,5]
[317907306,1709993443749,-1075.48864695,0.00023,5]
[317907308,1709993443760,-3854.09709277,0.00023,5]
[317907351,1709993446790,-13733.06492712,0.00022999,2]
[317907352,1709993446800,-38256.142325,0.00023,5]
[317907388,1709994631908,-155.14739002,0.00020854,2]
[317907389,1709994631918,-218.46610751,0.00020855,2]
[317907390,1709994631927,-186.68406057,0.00020856,2]
[317907391,1709994631937,-255.76734,0.000209,2]
[317907392,1709994631948,-11915.38551845,0.00021228,2]
[317907448,1709994638304,-738.26513682,0.00021228,2]
[317907450,1709994638316,-1079.41427185,0.00021228,2]
[317907452,1709994638325,-3640.85343572,0.00021229,2]
[317907454,1709994638338,-2417.09156686,0.00021229,2]
[317907456,1709994638349,-416.42424309,0.00021229,2]
[317907459,1709994638362,-373.41240393,0.00021229,2]
[317907596,1709994639908,-2190.11289064,0.00021229,2]
[317907598,1709994639920,-6431.14796576,0.00021229,2]
[317907600,1709994639930,-206.0,0.00022,2]
[317907602,1709994639940,-206.0,0.00022192,2]
[317907604,1709994639949,-268.424042,0.00022639,2]
[317907606,1709994639959,-179.532099,0.00022639,2]
[317907608,1709994639968,-154.752192,0.00022639,2]
[317907610,1709994639978,-1000.0,0.000228,2]
[317907613,1709994639988,-1000.0,0.000228,3]
[317907614,1709994639997,-1000.0,0.000228,4]
[317907617,1709994640006,-1000.0,0.000228,5]
[317907619,1709994640016,-1000.0,0.000229,6]
[317907621,1709994640025,-984.3723368,0.000229,2]
[317907623,1709994640034,-155.84106595,0.00022998,2]
[317907624,1709994640044,-424.12435557,0.00022998,2]
[317907627,1709994640055,-703.96157741,0.00022998,2]
[317907629,1709994640064,-500.0,0.00022999,2]
[317907631,1709994640074,-524.62,0.00022999,2]
[317907632,1709994640083,-500.0,0.00022999,2]
[317907635,1709994640093,-500.0,0.00022999,2]
[317907637,1709994640102,-500.0,0.00022999,2]
[317907639,1709994640112,-500.0,0.00022999,2]
[317907641,1709994640122,-500.0,0.00022999,2]
[317907643,1709994640131,-542.03,0.00022999,2]
[317907645,1709994640140,-500.0,0.00022999,2]
[317907646,1709994640149,-13396.67607604,0.00023,5]
[317908199,1709994645911,-155.14739002,0.00022999,2]
[317908201,1709994645921,-30288.51198102,0.00023,5]
[317908385,1709995061580,250.0,0.0001987,2]
[317908386,1709995173164,686.727465,0.0001987,2]
[317908387,1709995189152,686.3250758,0.0001987,2]
[317908389,1709995269629,11062.2721672,0.0001987,2]
[317908390,1709995592866,170.51156,0.000189,2]
[317908658,1709995832110,-186.68406057,0.00020543,2]
[317908660,1709995832120,-186.69412194,0.00020544,2]
[317908661,1709995832129,-28.78102317,0.00020567,2]
[317908663,1709995832140,-6397.53192647,0.00020567,2]
[317908666,1709995832152,-3991.05360594,0.00020567,2]
[317908668,1709995832163,-3315.69837154,0.00020567,2]
[317908670,1709995832172,-1435.8507327,0.00020567,2]
[317908672,1709995832183,-12297.21419442,0.00020567,2]
[317908674,1709995832192,-12676.97617584,0.00020568,2]
[317908676,1709995832204,-1056.08875128,0.00020568,2]
[317908678,1709995832213,-167.353421,0.00020644,2]
[317908680,1709995832222,-1086.06256059,0.00020796,2]
[317908682,1709995832232,-195.537698,0.00021004,2]
[317908684,1709995832241,-56.04452042,0.00021918,2]
[317909359,1709995843076,-253.31585158,0.00021918,2]
[317909361,1709995843085,-154.0,0.00022,2]
[317909373,1709995843192,-154.0,0.00022192,2]
[317909376,1709995843205,-500.0,0.00022739,2]
[317909378,1709995843214,-1000.0,0.000228,2]
[317909380,1709995843225,-1000.0,0.000228,3]
[317909382,1709995843234,-1000.0,0.000229,4]
[317909384,1709995843244,-234.19955254,0.00022998,2]
[317909386,1709995843253,-703.96157741,0.00022998,2]
[317909388,1709995843263,-1668.03514243,0.00022998,2]
[317909390,1709995843272,-155.03255684,0.00022998,2]
[317909392,1709995843281,-282.33559408,0.00022999,2]
[317909394,1709995843290,-500.0,0.00022999,2]
[317909396,1709995843299,-500.0,0.00022999,2]
[317909398,1709995843308,-498.65,0.00022999,2]